fUSD/lending_fUSD_20250930
["ID","MTS","AMOUNT","RATE_DAILY","PERIOD"]
[388530133,1759234273251,-500.0,0.00019452,2]
[388530134,1759234273260,-894.32,0.00019452,2]
[388530135,1759234273270,-500.0,0.00019452,2]
[388530136,1759234273279,-1439.78,0.00019452,2]
[388530137,1759234273289,-151.0,0.00019452,2]
[388530138,1759234273304,-2148.73,0.00019452,2]
[388530139,1759234273314,-500.0,0.00019452,2]
[388530140,1759234273324,-1480.9,0.00019452,2]
[388530141,1759234273336,-500.0,0.00019452,2]
[388530142,1759234273347,-1457.94,0.00019452,2]
[388530143,1759234273356,-500.0,0.00019452,2]
[388530144,1759234273366,-500.0,0.00019452,2]
[388530145,1759234273376,-1233.56,0.00019452,2]
[388530146,1759234273386,-500.0,0.00019452,2]
[388530147,1759234273396,-163.65892,0.00019452,2]
[388530148,1759234273407,-2763.87,0.00019452,2]
[388530149,1759234273417,-500.0,0.00019452,2]
[388530150,1759234273428,-500.0,0.00019452,2]
[388530151,1759234273438,-500.0,0.00019452,2]
[388530152,1759234273449,-500.0,0.00019452,2]
[388530153,1759234273459,-500.0,0.00019452,2]
[388530154,1759234273469,-4450.07,0.00019452,2]
[388530155,1759234273479,-955.85,0.00019452,2]
[388530156,1759234273489,-500.0,0.00019452,2]
[388530157,1759234273499,-1413.41,0.00019452,2]
[388530158,1759234273509,-500.0,0.00019452,2]
[388530159,1759234273519,-649.78,0.00019452,2]
[388530160,1759234273529,-925.72,0.00019452,2]
[388530161,1759234273538,-4039.57,0.00019452,2]
[388530162,1759234273548,-3358.48,0.00019452,2]
[388530163,1759234273558,-500.0,0.00019452,2]
[388530164,1759234273567,-500.0,0.00019452,2]
[388530165,1759234273578,-500.0,0.00019452,2]
[388530166,1759234273588,-500.0,0.00019452,2]
[388530167,1759234273598,-500.0,0.00019452,2]
[388530168,1759234273608,-4150.25,0.00019452,2]
[388530169,1759234273618,-1389.15,0.00019452,2]
[388530170,1759234273628,-3847.48,0.00019452,2]
[388530171,1759234273638,-500.0,0.00019452,2]
[388530172,1759234273648,-508.48956528,0.00019452,2]
[388530173,1759234273657,-500.0,0.00019452,2]
[388530174,1759234273667,-4612.6,0.00019452,2]
[388530175,1759234273676,-500.0,0.00019452,2]
[388530176,1759234273688,-685.88,0.00019452,2]
[388530177,1759234273698,-1707.24,0.00019452,2]
[388530178,1759234273707,-503.03,0.00019452,2]
[388530179,1759234273717,-2119.73,0.00019452,2]
[388530180,1759234273727,-151.0,0.00019452,2]
[388530181,1759234273736,-548.2,0.00019452,2]
[388530182,1759234273745,-151.0,0.00019452,2]
[388530183,1759234273756,-647.37695306,0.00019452,2]
[388530184,1759234273765,-3416.86,0.00019452,2]
[388530185,1759234273776,-206.870336,0.00019452,2]
[388530186,1759234273786,-500.0,0.00019452,2]
[388530187,1759234273812,-500.0,0.00019452,2]
[388530188,1759234273823,-500.0,0.00019452,2]
[388530189,1759234273835,-500.0,0.00019452,2]
[388530190,1759234273846,-500.0,0.00019452,2]
[388530191,1759234273857,-843.94,0.00019452,2]
[388530192,1759234273867,-500.0,0.00019452,2]
[388530193,1759234273878,-500.0,0.00019452,2]
[388530194,1759234273890,-500.0,0.00019452,2]
[388530195,1759234273900,-715.91,0.00019452,2]
[388530196,1759234273911,-1995.16,0.00019452,2]
[388530197,1759234273921,-500.0,0.00019452,2]
[388530198,1759234273932,-504.36,0.00019452,2]
[388530199,1759234273942,-3217.4,0.00019452,2]
[388530200,1759234273953,-500.0,0.00019452,2]
[388530201,1759234273964,-513.16,0.00019452,2]
[388530202,1759234273975,-500.0,0.00019452,2]
[388530203,1759234273986,-305.25104859,0.00019452,2]
[388530204,1759234273997,-2677.74,0.00019452,2]
[388530205,1759234274007,-500.0,0.00019452,2]
[388530206,1759234274018,-3141.65,0.00019452,2]
[388530207,1759234274029,-1503.58,0.00019452,2]
[388530208,1759234274039,-500.0,0.00019452,2]
[388530209,1759234274049,-303.42266855,0.00019452,2]
[388530210,1759234274060,-177.926497,0.00019452,2]
[388530211,1759234274070,-177.926497,0.00019452,2]
[388530212,1759234274080,-500.0,0.00019452,2]
[388530213,1759234274090,-1064.41,0.00019452,2]
[388530214,1759234274100,-177.926497,0.00019452,2]
[388530215,1759234274110,-177.926497,0.00019452,2]
[388530216,1759234274120,-1379.28,0.00019452,2]
[388530217,1759234274131,-500.0,0.00019452,2]
[388530218,1759234274141,-786.49,0.00019452,2]
[388530219,1759234274151,-177.926497,0.00019452,2]
[388530220,1759234274162,-500.0,0.00019452,2]
[388530221,1759234274179,-177.926497,0.00019452,2]
[388530222,1759234274193,-177.926497,0.00019452,2]
[388530223,1759234274205,-177.926495,0.00019452,2]
[388530224,1759234274216,-500.0,0.00019452,2]
[388530225,1759234274228,-4197.27,0.00019452,2]
[388530226,1759234274238,-2663.62,0.00019452,2]
[388530227,1759234274249,-1026.62,0.00019452,2]
[388530228,1759234274260,-2743.16,0.00019452,2]
[388530229,1759234274271,-500.0,0.00019452,2]
[388530230,1759234274282,-1747.12,0.00019452,2]
[388530231,1759234274296,-1970.14,0.00019452,2]
[388530232,1759234274311,-244.34614489,0.00019452,2]
[388530233,1759234274323,-1042.38,0.00019452,2]
[388530234,1759234274335,-500.0,0.00019452,2]
[388530235,1759234274348,-500.0,0.00019452,2]
[388530236,1759234274359,-2222.68,0.00019452,2]
[388530237,1759234274374,-1850.74,0.00019452,2]
[388530238,1759234274385,-500.0,0.00019452,2]
[388530239,1759234274396,-500.0,0.00019452,2]
[388530240,1759234274407,-500.0,0.00019452,2]
[388530241,1759234274417,-500.0,0.00019452,2]
[388530242,1759234274428,-515.94,0.00019452,2]
[388530243,1759234274439,-500.0,0.00019452,2]
[388530244,1759234274450,-500.0,0.00019452,2]
[388530245,1759234274461,-917.59,0.00019452,2]
[388530246,1759234274472,-500.0,0.00019452,2]
[388530247,1759234274483,-5198.99,0.00019452,2]
[388530248,1759234274494,-824.8,0.00019452,2]
[388530249,1759234274505,-500.0,0.00019452,2]
[388530250,1759234274516,-3178.18,0.00019452,2]
[388530251,1759234274527,-500.0,0.00019452,2]
[388530252,1759234274537,-3884.45,0.00019452,2]
[388530253,1759234274548,-976.17,0.00019452,2]
[388530254,1759234274559,-500.0,0.00019452,2]
[388530255,1759234274576,-1198.29,0.00019452,2]
[388530256,1759234274587,-1150.04,0.00019452,2]
[388530257,1759234274598,-500.0,0.00019452,2]
[388530258,1759234274610,-228.41,0.00019452,2]
[388530259,1759234274621,-832.02,0.00019452,2]
[388530260,1759234274631,-533.58,0.00019452,2]
[388530261,1759234274642,-749.38,0.00019452,2]
[388530262,1759234274653,-500.0,0.00019452,2]
[388530263,1759234274665,-500.0,0.00019452,2]
[388530264,1759234274676,-906.29,0.00019452,2]
[388530265,1759234274687,-500.0,0.00019452,2]
[388530266,1759234274698,-500.0,0.00019452,2]
[388530267,1759234274709,-500.0,0.00019452,2]
[388530268,1759234274720,-1094.0,0.00019452,2]
[388530269,1759234274732,-2438.41,0.00019452,2]
[388530270,1759234274744,-500.0,0.00019452,2]
[388530271,1759234274756,-3006.32,0.00019452,2]
[388530272,1759234274768,-500.0,0.00019452,2]
[388530273,1759234274780,-2372.66,0.00019452,2]
[388530274,1759234274792,-1146.01,0.00019452,2]
[388530275,1759234274803,-500.0,0.00019452,2]
[388530276,1759234274815,-4529.74,0.00019452,2]
[388530277,1759234274826,-3378.59,0.00019452,2]
[388530278,1759234274837,-1243.67,0.00019452,2]
[388530279,1759234274848,-542.54,0.00019452,2]
[388530280,1759234274860,-500.0,0.00019452,2]
[388530281,1759234274871,-151.0,0.00019452,2]
[388530282,1759234274882,-500.0,0.00019452,2]
[388530283,1759234274894,-301.922008,0.00019452,2]
[388530284,1759234274905,-500.0,0.00019452,2]
[388530285,1759234274916,-301.922008,0.00019452,2]
[388530286,1759234274927,-588.26,0.00019452,2]
[388530287,1759234274938,-1538.45,0.00019452,2]
[388530288,1759234274955,-500.0,0.00019452,2]
[388530289,1759234274966,-301.922008,0.00019452,2]
[388530290,1759234274977,-1053.09,0.00019452,2]
[388530291,1759234274988,-301.922008,0.00019452,2]
[388530292,1759234275000,-500.0,0.00019452,2]
[388530293,1759234275012,-500.0,0.00019452,2]
[388530294,1759234275023,-3184.95,0.00019452,2]
[388530295,1759234275034,-3238.2,0.00019452,2]
[388530296,1759234275044,-500.0,0.00019452,2]
[388530297,1759234275055,-2340.22,0.00019452,2]
[388530298,1759234275066,-151.0,0.00019452,2]
[388530299,1759234275078,-3794.21,0.00019452,2]
[388530300,1759234275089,-401.37105533,0.00019452,2]
[388530301,1759234275100,-500.0,0.00019452,2]
[388530302,1759234275110,-151.0,0.00019452,2]
[388530303,1759234275121,-500.0,0.00019452,2]
[388530304,1759234275131,-500.0,0.00019452,2]
[388530305,1759234275141,-1087.21,0.00019452,2]
[388530306,1759234275152,-500.0,0.00019452,2]
[388530307,1759234275163,-151.0,0.00019452,2]
[388530308,1759234275174,-3687.5,0.00019452,2]
[388530309,1759234275184,-500.0,0.00019452,2]
[388530310,1759234275195,-4005.84,0.00019452,2]
[388530311,1759234275206,-500.0,0.00019452,2]
[388530312,1759234275217,-609.64600168,0.00019452,2]
[388530313,1759234275227,-3037.36,0.00019452,2]
[388530314,1759234275237,-2443.98,0.00019452,2]
[388530315,1759234275248,-500.0,0.00019452,2]
[388530316,1759234275258,-530.8,0.00019452,2]
[388530317,1759234275269,-600.48,0.00019452,2]
[388530318,1759234275279,-500.0,0.00019452,2]
[388530319,1759234275289,-500.0,0.00019452,2]
[388530320,1759234275304,-500.0,0.00019452,2]
[388530321,1759234275314,-4172.12,0.00019452,2]
[388530322,1759234275326,-2189.14,0.00019452,2]
[388530323,1759234275336,-639.91,0.00019452,2]
[388530324,1759234275350,-2067.74,0.00019452,2]
[388530325,1759234275361,-1328.75,0.00019452,2]
[388530326,1759234275371,-500.0,0.00019452,2]
[388530327,1759234275381,-1772.20106345,0.00019452,2]
[388530328,1759234276884,-808.71829025,0.00019452,2]
[388530329,1759234276896,-496.59,0.00019452,2]
[388530330,1759234276908,-460.36906848,0.00019452,2]
[388530331,1759234276919,-59.65157782,0.00019452,2]
[388530332,1759234276929,-500.0,0.00019452,2]
[388530333,1759234276938,-525.43854084,0.00019452,2]
[388530334,1759234276950,-1502.62659752,0.00019452,2]
[388530335,1759234276961,-859.17065965,0.00019452,2]
[388530336,1759234276974,-5434.00420199,0.00019452,2]
[388530337,1759234276984,-1404.48,0.00019452,2]
[388530338,1759234276993,-771.19,0.00019452,2]
[388530339,1759234277003,-4461.97,0.00019452,2]
[388530340,1759234277013,-500.0,0.00019452,2]
[388530341,1759234277023,-882.53,0.00019452,2]
[388530342,1759234277032,-821.52,0.00019452,2]
[388530343,1759234277042,-2863.35,0.00019452,2]
[388530344,1759234277051,-795.49,0.00019452,2]
[388530345,1759234277061,-500.0,0.00019452,2]
[388530346,1759234277071,-286.942322,0.00019452,2]
[388530347,1759234277080,-1887.94,0.00019452,2]
[388530348,1759234277090,-286.942322,0.00019452,2]
[388530349,1759234277100,-3269.16,0.00019452,2]
[388530350,1759234277110,-5492.18,0.00019452,2]
[388530351,1759234277120,-730.29,0.00019452,2]
[388530352,1759234277130,-826.77,0.00019452,2]
[388530353,1759234277139,-286.942322,0.00019452,2]
[388530354,1759234277153,-1242.14,0.00019452,2]
[388530355,1759234277163,-500.0,0.00019452,2]
[388530356,1759234277172,-286.942318,0.00019452,2]
[388530357,1759234277182,-500.0,0.00019452,2]
[388530358,1759234277192,-138.15537225,0.00019452,2]
[388530359,1759234277242,-371.148201,0.00019178,2]
[388530360,1759234277251,-405.76462775,0.00019452,2]
[388530361,1759234277261,-2441.95,0.00019452,2]
[388530362,1759234277271,-3706.9,0.00019452,2]
[388530363,1759234277281,-2405.92,0.00019452,2]
[388530364,1759234277293,-5243.48843091,0.00019452,2]
[388530365,1759234277307,-1323.27193708,0.00019452,2]
[388530366,1759234277319,-5341.69963201,0.00019452,2]
[388530367,1759234277329,-286.83878075,0.00019452,2]
[388530368,1759234277338,-542.77595924,0.00019452,2]
[388530369,1759234277355,-190.74404076,0.00019452,2]
[388530370,1759234277365,-537.12,0.00019452,2]
[388530371,1759234277374,-500.0,0.00019452,2]
[388530372,1759234277386,-500.0,0.00019452,2]
[388530373,1759234277395,-642.17,0.00019452,2]
[388530374,1759234277405,-3276.64,0.00019452,2]
[388530375,1759234277416,-771.93,0.00019452,2]
[388530376,1759234277426,-500.0,0.00019452,2]
[388530377,1759234277435,-500.0,0.00019452,2]
[388530378,1759234277445,-4056.53,0.00019452,2]
[388530379,1759234277454,-500.0,0.00019452,2]
[388530380,1759234277464,-784.85,0.00019452,2]
[388530381,1759234277474,-500.0,0.00019452,2]
[388530382,1759234277483,-1008.58,0.00019452,2]
[388530383,1759234277493,-5551.1,0.00019452,2]
[388530384,1759234277502,-1207.61,0.00019452,2]
[388530385,1759234277512,-967.09,0.00019452,2]
[388530386,1759234277522,-500.0,0.00019452,2]
[388530387,1759234277531,-500.0,0.00019452,2]
[388530388,1759234277540,-4287.32,0.00019452,2]
[388530389,1759234277550,-2954.67,0.00019452,2]
[388530390,1759234277559,-3373.08,0.00019452,2]
[388530391,1759234277570,-151.0,0.00019452,2]
[388530392,1759234277579,-2891.79,0.00019452,2]
[388530393,1759234277593,-500.0,0.00019452,2]
[388530394,1759234277609,-500.0,0.00019452,2]
[388530395,1759234277627,-151.0,0.00019452,2]
[388530396,1759234277643,-500.0,0.00019452,2]
[388530397,1759234277656,-3948.84,0.00019452,2]
[388530398,1759234277671,-500.0,0.00019452,2]
[388530399,1759234277686,-500.0,0.00019452,2]
[388530400,1759234277701,-500.0,0.00019452,2]
[388530401,1759234277716,-151.0,0.00019452,2]
[388530402,1759234277731,-500.0,0.00019452,2]
[388530403,1759234277747,-3593.42,0.00019452,2]
[388530404,1759234277761,-300.487096,0.00019452,2]
[388530405,1759234277773,-500.0,0.00019452,2]
[388530406,1759234277785,-500.0,0.00019452,2]
[388530407,1759234277798,-1868.35,0.00019452,2]
[388530408,1759234277835,-2829.36,0.00019452,2]
[388530409,1759234277858,-1765.12,0.00019452,2]
[388530410,1759234277876,-3522.25,0.00019452,2]
[388530411,1759234277892,-500.0,0.00019452,2]
[388530412,1759234277910,-500.0,0.00019452,2]
[388530413,1759234277926,-16296.65,0.00019452,2]
[388530414,1759234277944,-5186.02,0.00019452,2]
[388530415,1759234277960,-2205.02,0.00019452,2]
[388530416,1759234277976,-455.31446319,0.00019452,2]
[388530417,1759234277993,-560.57,0.00019452,2]
[388530418,1759234278008,-1190.66,0.00019452,2]
[388530419,1759234278023,-5164.44,0.00019452,2]
[388530420,1759234278036,-500.0,0.00019452,2]
[388530421,1759234278051,-695.892138,0.00019452,2]
[388530422,1759234278072,-6186.98,0.00019452,2]
[388530423,1759234278089,-2514.33,0.00019452,2]
[388530424,1759234278106,-3455.25,0.00019452,2]
[388530425,1759234278120,-500.0,0.00019452,2]
[388530426,1759234278131,-695.892138,0.00019452,2]
[388530427,1759234278143,-500.0,0.00019452,2]
[388530428,1759234278157,-3420.1,0.00019452,2]
[388530429,1759234278173,-695.892138,0.00019452,2]
[388530430,1759234278187,-10086.17,0.00019452,2]
[388530431,1759234278199,-4973.61,0.00019452,2]
[388530432,1759234278210,-695.892138,0.00019452,2]
[388530433,1759234278222,-500.0,0.00019452,2]
[388530434,1759234278236,-500.0,0.00019452,2]
[388530435,1759234278254,-1204.81,0.00019452,2]
[388530436,1759234278301,-500.0,0.00019452,2]
[388530437,1759234278316,-213.11363847,0.00019452,2]
[388530438,1759234278332,-500.0,0.00019452,2]
[388530439,1759234278347,-393.41125743,0.00019452,2]
[388530440,1759234278362,-1865.86,0.00019452,2]
[388530441,1759234278381,-500.0,0.00019452,2]
[388530442,1759234278396,-500.0,0.00019452,2]
[388530443,1759234278411,-500.0,0.00019452,2]
[388530444,1759234278425,-500.0,0.00019452,2]
[388530445,1759234278440,-3412.9301262,0.00019452,2]
[388530446,1759234278643,-459.68,0.00019452,2]
[388530447,1759234278659,-1422.41859326,0.00019452,2]
[388530448,1759234278675,-2720.79643208,0.00019452,2]
[388530449,1759234278734,-719.31817716,0.00019452,2]
[388530450,1759234279581,-314.94499064,0.00019178,2]
[388530451,1759234279612,-56.20321036,0.00019178,2]
[388530452,1759234279625,-2047.95,0.00019178,2]
[388530453,1759234279637,-371.148201,0.00019178,2]
[388530454,1759234279650,-500.0,0.00019178,2]
[388530455,1759234279662,-500.0,0.00019178,2]
[388530456,1759234279675,-2449.49,0.00019178,2]
[388530457,1759234279687,-151.0,0.00019178,2]
[388530458,1759234279699,-371.148201,0.00019178,2]
[388530459,1759234279711,-742.05,0.00019178,2]
[388530460,1759234279724,-151.0,0.00019178,2]
[388530461,1759234279736,-2114.135,0.00019396,2]
[388530462,1759234279748,-2764.3966713,0.00019452,2]
[388530463,1759234279759,-2968.56,0.00019452,2]
[388530464,1759234279771,-2293.31947776,0.00019452,2]
[388530465,1759234279786,-4261.75052224,0.00019452,2]
[388530466,1759234279799,-1002.59,0.00019452,2]
[388530467,1759234279810,-3494.28,0.00019452,2]
[388530468,1759234279823,-500.0,0.00019452,2]
[388530469,1759234279838,-221.28591943,0.00019452,2]
[388530470,1759234279849,-500.0,0.00019452,2]
[388530471,1759234279863,-7688.96,0.00019452,2]
[388530472,1759234279874,-2690.16,0.00019452,2]
[388530473,1759234279886,-709.3,0.00019452,2]
[388530474,1759234279898,-500.0,0.00019452,2]
[388530475,1759234279910,-500.0,0.00019452,2]
[388530476,1759234279923,-1078.23,0.00019452,2]
[388530477,1759234279935,-2813.64,0.00019452,2]
[388530478,1759234279947,-763.46,0.00019452,2]
[388530479,1759234279959,-505.34,0.00019452,2]
[388530480,1759234279971,-4177.86,0.00019452,2]
[388530481,1759234279983,-4508.54,0.00019452,2]
[388530482,1759234279995,-2557.33,0.00019452,2]
[388530483,1759234280007,-500.0,0.00019452,2]
[388530484,1759234280020,-7635.4,0.00019452,2]
[388530485,1759234280032,-500.0,0.00019452,2]
[388530486,1759234281532,-3180.52,0.00019452,2]
[388530487,1759234281585,-4518.64,0.00019452,2]
[388530488,1759234281622,-500.0,0.00019452,2]
[388530489,1759234281660,-500.0,0.00019452,2]
[388530490,1759234281685,-5565.07,0.00019452,2]
[388530491,1759234281704,-3562.38,0.00019452,2]
[388530492,1759234281714,-543.48,0.00019452,2]
[388530493,1759234281724,-300.0,0.00019452,2]
[388530494,1759234281733,-1332.32,0.00019452,2]
[388530495,1759234281743,-1515.69,0.00019452,2]
[388530496,1759234281753,-615.23,0.00019452,2]
[388530497,1759234281763,-3058.64,0.00019452,2]
[388530498,1759234281772,-5853.83,0.00019452,2]
[388530499,1759234281782,-897.54,0.00019452,2]
[388530500,1759234281791,-500.0,0.00019452,2]
[388530501,1759234281801,-8271.17,0.00019452,2]
[388530502,1759234281811,-500.0,0.00019452,2]
[388530503,1759234281820,-500.0,0.00019452,2]
[388530504,1759234281830,-2196.28,0.00019452,2]
[388530505,1759234281839,-4306.25,0.00019452,2]
[388530506,1759234281849,-500.0,0.00019452,2]
[388530507,1759234281860,-1763.69,0.00019452,2]
[388530508,1759234281869,-3197.72,0.00019452,2]
[388530509,1759234281879,-563.91,0.00019452,2]
[388530510,1759234281889,-1351.58,0.00019452,2]
[388530511,1759234281898,-500.0,0.00019452,2]
[388530512,1759234281908,-4827.59,0.00019452,2]
[388530513,1759234281917,-2854.59,0.00019452,2]
[388530514,1759234281927,-151.0,0.00019452,2]
[388530515,1759234281936,-500.0,0.00019452,2]
[388530516,1759234281947,-1351.91,0.00019452,2]
[388530517,1759234281956,-151.0,0.00019452,2]
[388530518,1759234281966,-151.0,0.00019452,2]
[388530519,1759234281976,-500.0,0.00019452,2]
[388530520,1759234281986,-1477.49,0.00019452,2]
[388530521,1759234281995,-3187.48,0.00019452,2]
[388530522,1759234282005,-151.0,0.00019452,2]
[388530523,1759234282015,-11810.4,0.00019452,2]
[388530524,1759234282025,-3656.68,0.00019452,2]
[388530525,1759234282034,-2562.68,0.00019452,2]
[388530526,1759234282043,-3521.03,0.00019452,2]
[388530527,1759234282053,-2005.31,0.00019452,2]
[388530528,1759234282062,-500.0,0.00019452,2]
[388530529,1759234282072,-388.31535718,0.00019452,2]
[388530530,1759234282081,-980.59,0.00019452,2]
[388530531,1759234282090,-6055.25,0.00019452,2]
[388530532,1759234282100,-500.0,0.00019452,2]
[388530533,1759234282110,-843.89,0.00019452,2]
[388530534,1759234282120,-710.13,0.00019452,2]
[388530535,1759234282129,-1748.68,0.00019452,2]
[388530536,1759234282140,-821.43,0.00019452,2]
[388530537,1759234282149,-155.03126903,0.00019452,2]
[388530538,1759234282159,-500.0,0.00019452,2]
[388530539,1759234282169,-517.57,0.00019452,2]
[388530540,1759234282179,-5550.49,0.00019452,2]
[388530541,1759234282188,-4813.77,0.00019452,2]
[388530542,1759234282197,-500.0,0.00019452,2]
[388530543,1759234282207,-4457.99,0.00019452,2]
[388530544,1759234282216,-1422.36,0.00019452,2]
[388530545,1759234282225,-500.0,0.00019452,2]
[388530546,1759234282234,-5661.57,0.00019452,2]
[388530547,1759234282244,-2721.28,0.00019452,2]
[388530548,1759234282253,-500.0,0.00019452,2]
[388530549,1759234282263,-3886.98,0.00019452,2]
[388530550,1759234282273,-3305.16,0.00019452,2]
[388530551,1759234282283,-500.0,0.00019452,2]
[388530552,1759234282293,-3536.51,0.00019452,2]
[388530553,1759234282306,-500.0,0.00019452,2]
[388530554,1759234282315,-560.1,0.00019452,2]
[388530555,1759234282324,-500.0,0.00019452,2]
[388530556,1759234282334,-761.79,0.00019452,2]
[388530557,1759234282345,-151.0,0.00019452,2]
[388530558,1759234282354,-1406.33,0.00019452,2]
[388530559,1759234282363,-3921.97,0.00019452,2]
[388530560,1759234282373,-3377.43,0.00019452,2]
[388530561,1759234282383,-1571.05,0.00019452,2]
[388530562,1759234282392,-500.0,0.00019452,2]
[388530563,1759234282401,-5427.38,0.00019452,2]
[388530564,1759234282411,-2968.4,0.00019452,2]
[388530565,1759234282420,-1248.43,0.00019452,2]
[388530566,1759234282430,-500.0,0.00019452,2]
[388530567,1759234282440,-767.99,0.00019452,2]
[388530568,1759234282449,-2708.65,0.00019452,2]
[388530569,1759234282460,-500.0,0.00019452,2]
[388530570,1759234282470,-1549.3,0.00019452,2]
[388530571,1759234282479,-500.0,0.00019452,2]
[388530572,1759234282489,-500.0,0.00019452,2]
[388530573,1759234282499,-3096.04,0.00019452,2]
[388530574,1759234282508,-4313.48,0.00019452,2]
[388530575,1759234282517,-5116.29,0.00019452,2]
[388530576,1759234282528,-3314.63,0.00019452,2]
[388530577,1759234282538,-4394.77,0.00019452,2]
[388530578,1759234282548,-500.0,0.00019452,2]
[388530579,1759234282557,-500.0,0.00019452,2]
[388530580,1759234282567,-300.82285741,0.00019452,2]
[388530581,1759234282576,-3234.61,0.00019452,2]
[388530582,1759234282586,-3082.73,0.00019452,2]
[388530583,1759234282595,-869.78,0.00019452,2]
[388530584,1759234282605,-500.0,0.00019452,2]
[388530585,1759234282615,-3764.56,0.00019452,2]
[388530586,1759234282625,-500.0,0.00019452,2]
[388530587,1759234282635,-607.0209675,0.00019452,2]
[388530588,1759234282645,-528.35,0.00019452,2]
[388530589,1759234282654,-500.0,0.00019452,2]
[388530590,1759234282663,-3768.83,0.00019452,2]
[388530591,1759234282673,-563.81,0.00019452,2]
[388530592,1759234282683,-500.0,0.00019452,2]
[388530593,1759234282692,-8256.36,0.00019452,2]
[388530594,1759234282702,-519.81405479,0.00019452,2]
[388530595,1759234282712,-643.62,0.00019452,2]
[388530596,1759234282722,-1096.95,0.00019452,2]
[388530597,1759234282731,-838.63,0.00019452,2]
[388530598,1759234282740,-500.0,0.00019452,2]
[388530599,1759234282750,-962.14,0.00019452,2]
[388530600,1759234282759,-500.0,0.00019452,2]
[388530601,1759234282768,-2999.47,0.00019452,2]
[388530602,1759234282779,-151.0,0.00019452,2]
[388530603,1759234282792,-2904.51,0.00019452,2]
[388530604,1759234282803,-500.0,0.00019452,2]
[388530605,1759234282818,-2438.84,0.00019452,2]
[388530606,1759234282828,-151.0,0.00019452,2]
[388530607,1759234282838,-5164.47,0.00019452,2]
[388530608,1759234282847,-500.0,0.00019452,2]
[388530609,1759234282856,-1522.94,0.00019452,2]
[388530610,1759234282866,-1427.41,0.00019452,2]
[388530611,1759234282875,-582.24,0.00019452,2]
[388530612,1759234282884,-9998.35,0.00019452,2]
[388530613,1759234282894,-500.0,0.00019452,2]
[388530614,1759234282903,-10434.37,0.00019452,2]
[388530615,1759234282912,-500.0,0.00019452,2]
[388530616,1759234282922,-3007.06,0.00019452,2]
[388530617,1759234282931,-512.86,0.00019452,2]
[388530618,1759234282941,-151.0,0.00019452,2]
[388530619,1759234282950,-2191.69,0.00019452,2]
[388530620,1759234282959,-500.0,0.00019452,2]
[388530621,1759234282968,-500.0,0.00019452,2]
[388530622,1759234282977,-1281.24,0.00019452,2]
[388530623,1759234282987,-500.0,0.00019452,2]
[388530624,1759234282997,-500.0,0.00019452,2]
[388530625,1759234283006,-7103.28,0.00019452,2]
[388530626,1759234283015,-5320.8,0.00019452,2]
[388530627,1759234283025,-565.44480509,0.00019452,2]
[388530628,1759234283034,-1239.09,0.00019452,2]
[388530629,1759234283045,-151.0,0.00019452,2]
[388530630,1759234283054,-150.0,0.00019452,2]
[388530631,1759234283064,-500.0,0.00019452,2]
[388530632,1759234283073,-151.0,0.00019452,2]